bitfinex/quotes_BTCUSD_20250713
["timestamp","ask_amount","ask_price","bid_price","bid_amount"]
[1752404045325,0.04311712,117580.0,117570.0,0.332]
[1752404046040,0.04311712,117580.0,117570.0,0.20368]
[1752404046421,0.04311712,117580.0,117570.0,0.20468]
[1752404047780,0.04311712,117580.0,117570.0,0.333]
[1752404050130,0.04311712,117580.0,117570.0,0.20368]
[1752404050657,0.03293066,117580.0,117570.0,0.20563]
[1752404051938,0.03293066,117580.0,117570.0,0.33395]
[1752404052362,0.02498354,117580.0,117570.0,0.33395]
[1752404052562,0.03293068,117580.0,117570.0,0.20558]
[1752404052762,0.03293068,117580.0,117570.0,0.20368]
[1752404052901,0.03614068,117580.0,117570.0,0.20368]
[1752404053241,0.02819354,117580.0,117570.0,0.20368]
[1752404053453,0.03614068,117580.0,117570.0,0.20368]
[1752404054117,0.03614068,117580.0,117550.0,0.14090101]
[1752404054341,0.03619025,117580.0,117550.0,0.14090101]
[1752404054547,0.03619025,117580.0,117560.0,0.12832]
[1752404055166,0.03619025,117580.0,117570.0,0.20368]
[1752404056170,0.01581735,117580.0,117570.0,0.20368]
[1752404058016,0.01581735,117580.0,117570.0,0.333]
[1752404058222,0.01581735,117580.0,117570.0,0.20368]
[1752404059324,0.03231735,117580.0,117570.0,0.20368]
[1752404060510,0.03231735,117580.0,117570.0,0.672]
[1752404061191,0.03231738,117580.0,117570.0,0.672]
[1752404061995,0.03231738,117580.0,117550.0,0.15294526]
[1752404062176,0.03231738,117580.0,117550.0,0.14190994]
[1752404062617,0.03231738,117580.0,117550.0,0.13363345]
[1752404063430,0.03231738,117580.0,117550.0,0.13463345]
[1752404064175,0.03231738,117580.0,117570.0,0.34]
[1752404064370,0.03429738,117580.0,117570.0,0.32620585]
[1752404065196,0.03429738,117580.0,117570.0,0.52988585]
[1752404065876,0.03429738,117580.0,117570.0,0.53902629]
[1752404066485,0.03529738,117580.0,117570.0,0.53902629]
[1752404067186,0.03529731,117580.0,117570.0,0.53902629]
[1752404068034,0.03529731,117580.0,117570.0,0.52799097]
[1752404069876,0.02735021,117580.0,117570.0,0.52799097]
[1752404070083,0.03529729,117580.0,117570.0,0.21282044]
[1752404072432,0.03529729,117580.0,117570.0,0.20454395]
[1752404073215,0.03529729,117580.0,117570.0,0.28910993]
[1752404074095,0.03529729,117580.0,117570.0,0.27807461]
[1752404074289,0.03529729,117580.0,117570.0,0.26428046]
[1752404074504,0.03529729,117580.0,117570.0,0.39260046]
[1752404078925,0.02735021,117580.0,117570.0,0.73260046]
[1752404079125,0.03529728,117580.0,117570.0,0.73260046]
[1752404080094,0.03529728,117580.0,117570.0,0.72156514]
[1752404081896,0.02735021,117580.0,117570.0,0.72156514]
[1752404082119,0.03529728,117580.0,117570.0,0.72156514]
[1752404082547,0.03529728,117580.0,117570.0,0.71328865]
[1752404083419,0.03529728,117580.0,117570.0,0.69397684]
[1752404084377,0.03529728,117580.0,117570.0,0.332]
[1752404086241,0.03529728,117580.0,117570.0,0.20368]
[1752404087359,0.03529728,117580.0,117570.0,0.332]
[1752404087563,0.02735021,117580.0,117570.0,0.332]
[1752404087772,0.03529737,117580.0,117570.0,0.332]
[1752404088183,0.03529737,117580.0,117570.0,0.20368]
[1752404089458,0.03529737,117580.0,117570.0,0.332]
[1752404091270,0.03529737,117580.0,117570.0,0.20368]
[1752404092187,0.03529737,117580.0,117560.0,0.32344702]
[1752404092330,0.03208737,117580.0,117560.0,0.40887695]
[1752404092534,0.00293,117570.0,117560.0,0.40060046]
[1752404092733,0.00794716,117570.0,117560.0,0.52892046]
[1752404093382,0.00794716,117570.0,117560.0,0.52992046]
[1752404093901,0.00794716,117570.0,117560.0,0.52892046]
[1752404094113,0.00794716,117570.0,117560.0,0.52992046]
[1752404094507,0.00794716,117570.0,117560.0,0.21474993]
[1752404095277,0.00794716,117570.0,117560.0,0.52434993]
[1752404096330,0.02409021,117580.0,117560.0,0.52434993]
[1752404096528,0.03203717,117580.0,117560.0,0.52434993]
[1752404097249,0.03203717,117580.0,117560.0,0.52334993]
[1752404097654,0.03203717,117580.0,117560.0,0.52534993]
[1752404098064,0.015,117570.0,117560.0,0.86634993]
[1752404098270,0.02294696,117570.0,117560.0,0.85531461]
[1752404098927,0.02294696,117570.0,117560.0,0.85331461]
[1752404099160,0.00794696,117570.0,117560.0,0.85331461]
[1752404100400,0.00794696,117570.0,117560.0,0.85431461]
[1752404100814,0.0012937,117570.0,117560.0,0.85431461]
[1752404102549,0.0012937,117570.0,117560.0,0.84603812]
[1752404103378,0.0012937,117570.0,117560.0,0.84052046]
[1752404104208,0.03447957,117580.0,117570.0,0.32896468]
[1752404104431,0.03656957,117580.0,117570.0,0.31517052]
[1752404107290,0.03756957,117580.0,117570.0,0.31517052]
[1752404108194,0.03756957,117580.0,117570.0,0.2958587]
[1752404108394,0.03756957,117580.0,117570.0,0.4995387]
[1752404110161,0.03756957,117580.0,117570.0,0.48850338]
[1752404111826,0.03756957,117580.0,117570.0,0.20368]
[1752404112562,0.03756957,117580.0,117560.0,0.28656397]
[1752404112840,0.04551655,117580.0,117570.0,0.20368]
[1752404113154,0.04551655,117580.0,117570.0,0.54368]
[1752404113568,0.04451655,117580.0,117570.0,0.54368]
[1752404114537,0.04551655,117580.0,117570.0,0.20368]
[1752404116326,0.04631655,117580.0,117570.0,0.20368]
[1752404118218,0.03051655,117580.0,117570.0,0.20368]
[1752404118417,0.04651673,117580.0,117570.0,0.20368]
[1752404121220,0.04651673,117580.0,117570.0,0.3096]
[1752404121412,0.03856957,117580.0,117570.0,0.3096]
[1752404121614,0.04651662,117580.0,117570.0,0.3096]
[1752404121938,0.03856957,117580.0,117570.0,0.3096]
[1752404122165,0.04651659,117580.0,117570.0,0.20368]
[1752404122762,0.016,117570.0,117560.0,0.14477918]
[1752404122919,0.02394702,117570.0,117560.0,0.14477918]
[1752404124233,0.02394702,117570.0,117560.0,0.14577918]
[1752404124436,0.00794695,117570.0,117560.0,0.47198503]
[1752404125048,0.01114695,117570.0,117560.0,0.47198503]
[1752404125254,0.02883695,117570.0,117560.0,0.78158503]
[1752404125453,0.02883695,117570.0,117560.0,0.78258503]
[1752404127527,0.04473695,117570.0,117560.0,0.78258503]
[1752404128313,0.04473695,117570.0,117560.0,0.64322958]
[1752404129508,0.04473695,117570.0,117560.0,0.77150958]
[1752404130175,0.03679,117570.0,117560.0,0.77150958]
[1752404130379,0.04473625,117570.0,117560.0,0.77150958]
[1752404132572,0.02436307,117570.0,117560.0,0.76323298]
[1752404132784,0.02436307,117570.0,117560.0,0.76522298]
[1752404133322,0.02436307,117570.0,117560.0,0.75970525]
[1752404134324,0.02436307,117570.0,117560.0,0.74866978]
[1752404135214,0.02741307,117570.0,117560.0,0.74866978]
[1752404135939,0.04351307,117570.0,117560.0,0.74866978]
[1752404136349,0.05805392,117570.0,117560.0,0.3106]
[1752404136549,0.0156,117550.0,117540.0,0.14193736]
[1752404136755,0.03964625,117550.0,117540.0,0.47601736]
[1752404137589,0.04468625,117550.0,117540.0,0.47601736]
[1752404137919,0.04568625,117550.0,117540.0,0.47601736]
[1752404138325,0.04568625,117550.0,117540.0,0.81601736]
[1752404138876,0.04567609,117550.0,117540.0,0.81601736]
[1752404139490,0.04567594,117550.0,117540.0,0.81601736]
[1752404141954,0.04262594,117550.0,117540.0,0.81601736]
[1752404142649,0.04262594,117550.0,117540.0,0.80773925]
[1752404144294,0.02652594,117550.0,117540.0,0.80773925]
[1752404148309,0.02652594,117550.0,117540.0,0.80222057]
[1752404152616,0.02652594,117550.0,117540.0,0.79394255]
[1752404153158,0.02453594,117550.0,117540.0,0.79394255]
[1752404155841,0.03993594,117550.0,117540.0,0.79394255]
[1752404156128,0.032,117550.0,117540.0,0.79394255]
[1752404156353,0.03992794,117550.0,117540.0,0.79394255]
[1752404156676,0.03992837,117550.0,117540.0,0.79394255]
[1752404157684,0.03992837,117550.0,117540.0,0.78290449]
[1752404157885,0.00892837,117550.0,117540.0,0.78290449]
[1752404161258,0.00892868,117550.0,117540.0,0.78290449]
[1752404162726,0.00892868,117550.0,117540.0,0.64642594]
[1752404162930,0.00892868,117550.0,117540.0,0.64854594]
[1752404163443,0.00892868,117550.0,117540.0,0.64302691]
[1752404163754,0.00892868,117550.0,117540.0,0.76030885]
[1752404164009,0.02698084,117550.0,117540.0,0.76030885]
[1752404164222,0.02698084,117550.0,117540.0,0.78922985]
[1752404164526,0.02698224,117550.0,117540.0,0.78922985]
[1752404169811,0.02698224,117550.0,117540.0,0.77819179]
[1752404170998,0.02908224,117550.0,117540.0,0.77819179]
[1752404172691,0.02908516,117550.0,117540.0,0.76991324]
[1752404172844,0.02908516,117550.0,117540.0,0.469041]
[1752404175904,0.02908516,117550.0,117540.0,0.32968294]
[1752404176965,0.02908516,117550.0,117540.0,0.45796294]
[1752404178211,0.02908516,117550.0,117540.0,0.45244391]
[1752404181324,0.02115,117550.0,117540.0,0.45244391]
[1752404181523,0.02908694,117550.0,117540.0,0.45244391]
[1752404181906,0.02908694,117550.0,117540.0,0.44140585]
[1752404182435,0.0290875,117550.0,117540.0,0.44140585]
[1752404182732,0.0290875,117550.0,117540.0,0.20376]
[1752404184053,0.0290875,117550.0,117540.0,0.33204]
[1752404185246,0.0290875,117550.0,117540.0,0.43796]
[1752404187497,0.0290875,117550.0,117540.0,0.46701575]
[1752404187774,0.0290875,117550.0,117540.0,0.22177769]
[1752404188077,0.0290875,117550.0,117540.0,0.32769769]
[1752404189018,0.0290875,117550.0,117540.0,0.45597769]
[1752404190134,0.02115,117550.0,117540.0,0.45597769]
[1752404190325,0.02909507,117550.0,117540.0,0.45597769]
[1752404192758,0.02909507,117550.0,117540.0,0.44769914]
[1752404193279,0.02909507,117550.0,117540.0,0.44218011]
[1752404193981,0.02909507,117550.0,117540.0,0.20376]
[1752404195081,0.02909507,117550.0,117540.0,0.33204]
[1752404195262,0.02909507,117550.0,117540.0,0.43796]
[1752404196787,0.02909507,117550.0,117540.0,0.47264939]
[1752404196943,0.0154,117560.0,117540.0,0.47462939]
[1752404197150,0.02994085,117560.0,117550.0,0.20376]
[1752404197380,0.03208085,117560.0,117550.0,0.20376]
[1752404198487,0.03408085,117560.0,117550.0,0.20376]
[1752404199054,0.03726085,117560.0,117550.0,0.20376]
[1752404199569,0.03826085,117560.0,117550.0,0.20376]
[1752404200055,0.05386085,117560.0,117550.0,0.20376]
[1752404201388,0.05386085,117560.0,117550.0,0.33204]
[1752404202768,0.05386085,117560.0,117550.0,0.20376]
[1752404204245,0.05386085,117560.0,117550.0,0.33204]
[1752404205938,0.05386085,117560.0,117550.0,0.20376]
[1752404207460,0.05386085,117560.0,117550.0,0.33204]
[1752404208379,0.05386085,117560.0,117550.0,0.20376]
[1752404209078,0.06180614,117560.0,117550.0,0.20376]
[1752404210002,0.06180614,117560.0,117550.0,0.33204]
[1752404211812,0.06180614,117560.0,117530.0,0.06442082]
[1752404212182,0.06180614,117560.0,117530.0,0.06128082]
[1752404212392,0.06180614,117560.0,117540.0,0.00314]
[1752404212775,0.05980614,117560.0,117530.0,0.05614227]
[1752404213741,0.05880614,117560.0,117540.0,0.12828]
[1752404215194,0.05880614,117560.0,117550.0,0.20376]
[1752404216104,0.05086085,117560.0,117550.0,0.20376]
[1752404216332,0.05880561,117560.0,117550.0,0.20376]
[1752404217112,0.05980561,117560.0,117550.0,0.20376]
[1752404217312,0.06180561,117560.0,117550.0,0.20376]
[1752404219368,0.06180561,117560.0,117550.0,0.33204]
[1752404220742,0.02548561,117560.0,117550.0,0.34972]
[1752404220945,0.02866561,117560.0,117550.0,0.34972]
[1752404222671,0.02548561,117560.0,117550.0,0.34972]
[1752404222963,0.01094476,117560.0,117550.0,0.21316175]
[1752404223346,0.01094476,117560.0,117550.0,0.20764298]
[1752404223979,0.02548411,117560.0,117540.0,0.3562]
[1752404224151,0.02548411,117560.0,117550.0,0.00212675]
[1752404224668,0.02548411,117560.0,117550.0,0.13040675]
[1752404224802,0.02448411,117560.0,117550.0,0.13040675]
[1752404225224,0.02448411,117560.0,117550.0,0.33416675]
[1752404225436,0.02448411,117560.0,117550.0,0.33204]
[1752404226883,0.02548275,117560.0,117550.0,0.33204]
[1752404229909,0.02843275,117560.0,117540.0,0.56284993]
[1752404230101,0.02843275,117560.0,117550.0,0.20376]
[1752404230734,0.02543275,117560.0,117550.0,0.20376]
[1752404231459,0.0108919,117560.0,117550.0,0.33204]
[1752404231783,0.0128919,117560.0,117550.0,0.33204]
[1752404232799,0.01289086,117560.0,117540.0,0.55457177]
[1752404232984,0.01389086,117560.0,117550.0,0.20376]
[1752404233674,0.01289086,117560.0,117550.0,0.20376]
[1752404234483,0.01289086,117560.0,117550.0,0.33204]
[1752404235641,0.00994062,117560.0,117550.0,0.36384]
[1752404235776,0.001,117560.0,117550.0,0.36384]
[1752404235978,0.001,117560.0,117550.0,0.22452284]
[1752404236736,0.001,117560.0,117550.0,0.21926]
[1752404237730,0.001,117560.0,117550.0,0.34754]
[1752404238515,0.001,117560.0,117550.0,0.34202147]
[1752404241327,0.01116192,117570.0,117550.0,0.34202147]
[1752404241534,0.02676192,117570.0,117550.0,0.34202147]
[1752404241957,0.02676192,117570.0,117560.0,0.20372]
[1752404242678,0.02984192,117570.0,117560.0,0.20372]
[1752404242882,0.02884192,117570.0,117560.0,0.20372]
[1752404243305,0.03084192,117570.0,117560.0,0.20372]
[1752404243701,0.03184192,117570.0,117560.0,0.332]
[1752404244264,0.03384192,117570.0,117560.0,0.332]
[1752404247767,0.04178194,117570.0,117560.0,0.332]
[1752404248072,0.04178194,117570.0,117560.0,0.20372]
[1752404249522,0.04178194,117570.0,117560.0,0.332]
[1752404250186,0.04178297,117570.0,117560.0,0.332]
[1752404250624,0.03384192,117570.0,117560.0,0.332]
[1752404250829,0.04178298,117570.0,117560.0,0.332]
[1752404252915,0.04178298,117570.0,117540.0,0.48533439]
[1752404253564,0.04178298,117570.0,117540.0,0.47981584]
[1752404254003,0.03878298,117570.0,117540.0,0.47981584]
[1752404254314,0.03878298,117570.0,117550.0,0.12828]
[1752404254504,0.03878298,117570.0,117540.0,0.47981584]
[1752404254744,0.03678298,117570.0,117540.0,0.47981584]
[1752404255245,0.03678298,117570.0,117550.0,0.30964]
[1752404255383,0.03778298,117570.0,117550.0,0.30964]
[1752404256022,0.03778298,117570.0,117560.0,0.12828]
[1752404256383,0.03878298,117570.0,117560.0,0.12828]
[1752404256940,0.03778298,117570.0,117560.0,0.12828]
[1752404257650,0.03678298,117570.0,117560.0,0.12828]
[1752404257849,0.03878298,117570.0,117560.0,0.12828]
[1752404258083,0.04078298,117570.0,117560.0,0.12828]
[1752404258925,0.03284192,117570.0,117560.0,0.12828]
[1752404259164,0.04078419,117570.0,117560.0,0.12828]
[1752404259605,0.04078437,117570.0,117560.0,0.12828]
[1752404259824,0.04078437,117570.0,117560.0,0.332]
[1752404260471,0.04078437,117570.0,117560.0,0.20372]
[1752404261924,0.04078484,117570.0,117560.0,0.20372]
[1752404262237,0.04078484,117570.0,117560.0,0.332]
[1752404262833,0.04078484,117570.0,117560.0,0.20372]
[1752404263043,0.04078484,117570.0,117540.0,0.47981584]
[1752404264039,0.03878484,117570.0,117540.0,0.47981584]
[1752404264600,0.03878484,117570.0,117550.0,0.12828]
[1752404264795,0.03878607,117570.0,117550.0,0.12828]
[1752404265148,0.03878607,117570.0,117560.0,0.20372]
[1752404267040,0.03978607,117570.0,117560.0,0.20372]
[1752404267247,0.03778607,117570.0,117560.0,0.20372]
[1752404267554,0.02984192,117570.0,117560.0,0.20372]
[1752404267692,0.03678726,117570.0,117560.0,0.20372]
[1752404268169,0.03678732,117570.0,117560.0,0.20372]
[1752404268357,0.03878732,117570.0,117560.0,0.33196]
[1752404268571,0.03878732,117570.0,117560.0,0.20372]
[1752404268947,0.04078732,117570.0,117560.0,0.20372]
[1752404270292,0.04078732,117570.0,117560.0,0.33196]
[1752404272569,0.04078732,117570.0,117540.0,0.15361255]
[1752404273395,0.0162,117560.0,117540.0,0.15361255]
[1752404273687,0.0241454,117560.0,117540.0,0.15361255]
[1752404274439,0.0241454,117560.0,117550.0,0.12824]
[1752404274650,0.0241454,117560.0,117540.0,0.15361255]
[1752404275225,0.0241454,117560.0,117550.0,0.30964]
[1752404276314,0.02414519,117560.0,117550.0,0.30964]
[1752404276517,0.02414519,117560.0,117550.0,0.43788]
[1752404276818,0.02614519,117560.0,117550.0,0.43788]
[1752404278682,0.02614519,117560.0,117550.0,0.30964]
[1752404280552,0.02614519,117560.0,117550.0,0.43788]
[1752404283488,0.02614519,117560.0,117550.0,0.20372]
[1752404284219,0.02614632,117560.0,117550.0,0.20372]
[1752404284638,0.02614632,117560.0,117540.0,0.13299402]
[1752404285301,0.02614632,117560.0,117550.0,0.43788]
[1752404285506,0.02514632,117560.0,117550.0,0.43788]
[1752404286364,0.02614632,117560.0,117550.0,0.43788]
[1752404287372,0.02514632,117560.0,117550.0,0.43788]
[1752404288506,0.02614632,117560.0,117550.0,0.43788]
[1752404289800,0.04214632,117560.0,117550.0,0.43788]
[1752404290647,0.04214632,117560.0,117550.0,0.30964]
[1752404292284,0.04214632,117560.0,117550.0,0.43788]
[1752404292838,0.0342,117560.0,117550.0,0.43788]
[1752404293040,0.04214652,117560.0,117550.0,0.43788]
[1752404293436,0.04214654,117560.0,117550.0,0.43788]
[1752404294681,0.04214654,117560.0,117550.0,0.20372]
[1752404295416,0.04214654,117560.0,117550.0,0.30964]
[1752404296166,0.04214654,117560.0,117550.0,0.43788]
[1752404296746,0.04214654,117560.0,117550.0,0.30964]
[1752404298423,0.04214654,117560.0,117550.0,0.43788]
[1752404298636,0.04214654,117560.0,117550.0,0.20372]
[1752404298842,0.00794654,117560.0,117550.0,0.20372]
[1752404300631,0.01113654,117560.0,117550.0,0.33196]
[1752404301608,0.00319,117560.0,117550.0,0.33196]
[1752404301857,0.01113672,117560.0,117550.0,0.33196]
[1752404302800,0.01113672,117560.0,117540.0,0.1274755]
[1752404303010,0.01113672,117560.0,117540.0,0.1434755]
[1752404304011,0.01113672,117560.0,117540.0,0.1444755]
[1752404304628,0.01113672,117560.0,117540.0,0.1454755]
[1752404304828,0.01113672,117560.0,117550.0,0.12824]
[1752404304960,0.01113672,117560.0,117540.0,0.1454755]
[1752404305168,0.01113672,117560.0,117550.0,0.30964]
[1752404306861,0.00103853,117560.0,117550.0,0.31168]
[1752404307181,0.00103853,117560.0,117550.0,0.43992]
[1752404308775,0.0225505,117570.0,117550.0,0.30964]
[1752404308929,0.00319,117560.0,117550.0,0.30964]
[1752404309131,0.00319,117560.0,117550.0,0.31055]
[1752404311037,0.00319,117560.0,117550.0,0.43879]
[1752404313573,0.00319,117560.0,117540.0,0.14147698]
[1752404313872,0.00319,117560.0,117550.0,0.20372]
[1752404314884,0.00319,117560.0,117540.0,0.13986698]
[1752404315236,0.00319,117560.0,117550.0,0.20372]
[1752404315573,0.00319,117560.0,117550.0,0.33196]
[1752404317934,0.00319,117560.0,117550.0,0.43788]
[1752404318336,0.0185245,117570.0,117550.0,0.43788]
[1752404318541,0.0185245,117570.0,117550.0,0.43991]
[1752404320299,0.0215845,117570.0,117550.0,0.43991]
[1752404320858,0.02953119,117570.0,117560.0,0.20372]
[1752404320976,0.03153119,117570.0,117560.0,0.20372]
[1752404322049,0.03353119,117570.0,117560.0,0.20372]
[1752404322476,0.03553119,117570.0,117560.0,0.33192]
[1752404325045,0.03553119,117570.0,117560.0,0.20372]
[1752404326657,0.03553119,117570.0,117560.0,0.33192]
[1752404326812,0.03553119,117570.0,117560.0,0.20372]
[1752404327636,0.03553075,117570.0,117560.0,0.20372]
[1752404328648,0.03553075,117570.0,117560.0,0.33192]
[1752404331243,0.03553075,117570.0,117540.0,0.13619851]
[1752404332109,0.03353075,117570.0,117540.0,0.13619851]
[1752404332538,0.03353075,117570.0,117540.0,0.13719851]
[1752404332865,0.03353075,117570.0,117550.0,0.1282]
[1752404333116,0.03353075,117570.0,117540.0,0.13719851]
[1752404334026,0.0255845,117570.0,117540.0,0.13719851]
[1752404334227,0.03353067,117570.0,117540.0,0.13619851]
[1752404335054,0.03353067,117570.0,117550.0,0.1282]
[1752404335274,0.03353067,117570.0,117560.0,0.20372]
[1752404335482,0.03153067,117570.0,117560.0,0.20372]
[1752404336415,0.03353069,117570.0,117560.0,0.20372]
[1752404337496,0.03353069,117570.0,117560.0,0.33192]
[1752404339046,0.03353069,117570.0,117560.0,0.20372]
[1752404341235,0.03553069,117570.0,117560.0,0.1282]
[1752404343637,0.03553069,117570.0,117540.0,0.1328068]
[1752404344189,0.03553079,117570.0,117540.0,0.1328068]
[1752404345011,0.03553081,117570.0,117540.0,0.1328068]
[1752404345246,0.03553081,117570.0,117550.0,0.30964]
[1752404345411,0.03553081,117570.0,117560.0,0.20372]
[1752404345726,0.03353081,117570.0,117560.0,0.33192]
[1752404345927,0.03153081,117570.0,117560.0,0.33192]
[1752404346998,0.03353081,117570.0,117560.0,0.33192]
[1752404347646,0.03553081,117570.0,117560.0,0.33192]
[1752404351033,0.03553081,117570.0,117560.0,0.20372]
[1752404351431,0.03553081,117570.0,117540.0,0.1328068]
[1752404351613,0.02534288,117570.0,117540.0,0.1328068]
[1752404352164,0.02334288,117570.0,117540.0,0.1328068]
[1752404352374,0.02134288,117570.0,117540.0,0.1328068]
[1752404352490,0.02134288,117570.0,117540.0,0.1348068]
[1752404352694,0.02134288,117570.0,117550.0,0.12816]
[1752404352918,0.02134297,117570.0,117550.0,0.12816]
[1752404353739,0.02134298,117570.0,117550.0,0.12816]
[1752404354767,0.03644298,117570.0,117550.0,0.12816]
[1752404355289,0.03644298,117570.0,117560.0,0.20372]
[1752404355840,0.02134298,117570.0,117560.0,0.20503]
[1752404356035,0.01100641,117570.0,117560.0,0.20503]
[1752404356261,0.00794641,117570.0,117560.0,0.23793]
[1752404356463,0.01194641,117570.0,117560.0,0.23793]
[1752404356676,0.01194641,117570.0,117560.0,0.20503]
[1752404357081,0.01194641,117570.0,117560.0,0.33319]
[1752404357518,0.01194641,117570.0,117560.0,0.20372]
[1752404359222,0.01194641,117570.0,117560.0,0.33188]
[1752404360539,0.01194486,117570.0,117560.0,0.33188]
[1752404361274,0.01497486,117570.0,117560.0,0.33188]
[1752404361686,0.00303,117570.0,117560.0,0.33188]
[1752404363389,0.00303,117570.0,117550.0,0.02820174]
[1752404363606,0.00303,117570.0,117560.0,0.00212657]
[1752404364647,0.00303,117570.0,117550.0,0.11363167]
[1752404365026,0.00303,117570.0,117560.0,0.12816]
[1752404365233,0.00303,117570.0,117560.0,0.43992657]
[1752404365445,0.00303,117570.0,117560.0,0.30964]
[1752404367413,0.00303,117570.0,117560.0,0.4378]
[1752404369511,0.00303,117570.0,117560.0,0.20372]
[1752404371347,0.00303,117570.0,117560.0,0.33188]
[1752404371878,0.0311,117580.0,117560.0,0.33387]
[1752404372081,0.0342,117590.0,117560.0,0.36647]
[1752404372290,0.0157,117580.0,117560.0,0.36647]
[1752404372466,0.0157,117580.0,117560.0,0.35027]
[1752404372683,0.0322,117580.0,117560.0,0.35027]
[1752404372978,0.0332,117580.0,117560.0,0.35027]
[1752404373738,0.04114228,117580.0,117560.0,0.01287184]
[1752404373960,0.04417228,117580.0,117560.0,0.01499841]
[1752404375050,0.04517228,117580.0,117560.0,0.01499841]
[1752404375250,0.04517228,117580.0,117570.0,0.20372]
[1752404375519,0.04714228,117580.0,117570.0,0.20372]
[1752404376251,0.04614228,117580.0,117570.0,0.20372]
[1752404376427,0.04514228,117580.0,117570.0,0.20372]
[1752404376651,0.04714228,117580.0,117570.0,0.20372]
[1752404377615,0.04914228,117580.0,117570.0,0.46004]
[1752404379507,0.04914257,117580.0,117570.0,0.46004]
[1752404381624,0.04914257,117580.0,117550.0,0.11964993]
[1752404381951,0.03895524,117580.0,117550.0,0.11964993]
[1752404382434,0.03495551,117580.0,117550.0,0.11964993]
[1752404383375,0.03495551,117580.0,117560.0,0.25632]
[1752404385251,0.03595551,117580.0,117570.0,0.20372]
[1752404385955,0.03695551,117580.0,117570.0,0.20372]
[1752404386108,0.03495551,117580.0,117570.0,0.20372]
[1752404386502,0.03695551,117580.0,117570.0,0.20372]
[1752404387399,0.03695551,117580.0,117570.0,0.46]
[1752404387604,0.03895551,117580.0,117570.0,0.20372]
[1752404387963,0.03895717,117580.0,117570.0,0.20372]
[1752404388479,0.03101267,117580.0,117570.0,0.20372]
[1752404388714,0.0389573,117580.0,117550.0,0.11413183]
[1752404388994,0.0389573,117580.0,117560.0,0.00212657]
[1752404389496,0.0389573,117580.0,117570.0,0.25628]
[1752404389696,0.0369573,117580.0,117570.0,0.25628]
[1752404390990,0.03695779,117580.0,117570.0,0.25628]
[1752404391534,0.03895779,117580.0,117570.0,0.25628]
[1752404391735,0.02877058,117580.0,117570.0,0.25628]
[1752404393548,0.02877058,117580.0,117550.0,0.09793183]
[1752404393713,0.02877058,117580.0,117560.0,0.01832657]
[1752404394285,0.02677058,117580.0,117560.0,0.01832657]
[1752404395204,0.02677058,117580.0,117570.0,0.20372]
[1752404395428,0.02577058,117580.0,117570.0,0.20372]
[1752404395659,0.04227058,117580.0,117570.0,0.20372]
[1752404396765,0.03532546,117580.0,117570.0,0.20372]
[1752404396976,0.04227161,117580.0,117570.0,0.20372]
[1752404397185,0.04327161,117580.0,117570.0,0.20372]
[1752404397387,0.04527161,117580.0,117570.0,0.20372]
[1752404397519,0.04527161,117580.0,117570.0,0.46]
[1752404399652,0.04527161,117580.0,117570.0,0.20372]
[1752404400818,0.02877161,117580.0,117570.0,0.20372]
[1752404401605,0.02877161,117580.0,117570.0,0.46]
[1752404401729,0.01694615,117580.0,117570.0,0.46]
[1752404403706,0.01694615,117580.0,117560.0,0.00968193]
[1752404403921,0.03284615,117580.0,117560.0,0.0268085]
[1752404404446,0.03084615,117580.0,117560.0,0.0268085]
[1752404404647,0.03084641,117580.0,117560.0,0.0268085]
[1752404404851,0.03184641,117580.0,117560.0,0.0268085]
[1752404405206,0.03184641,117580.0,117570.0,0.20372]
[1752404405389,0.03184641,117580.0,117560.0,0.12232482]
[1752404405619,0.03184641,117580.0,117570.0,0.20372]
[1752404405842,0.04744641,117580.0,117570.0,0.20372]
[1752404405985,0.04644641,117580.0,117570.0,0.20372]
[1752404406963,0.04444641,117580.0,117570.0,0.20372]
[1752404407353,0.04544641,117580.0,117570.0,0.20372]
[1752404407569,0.04444641,117580.0,117570.0,0.46]
[1752404407990,0.04644641,117580.0,117570.0,0.46]
[1752404408399,0.04844641,117580.0,117570.0,0.46]
[1752404411593,0.04844641,117580.0,117570.0,0.20372]
[1752404411800,0.03825921,117580.0,117570.0,0.20584]
[1752404411940,0.04031921,117580.0,117570.0,0.20584]
[1752404413086,0.04031943,117580.0,117570.0,0.20584]
[1752404413387,0.04031943,117580.0,117570.0,0.46208]
[1752404414449,0.04031955,117580.0,117570.0,0.46208]
[1752404415630,0.04346955,117580.0,117570.0,0.20372]
[1752404417393,0.04346955,117580.0,117570.0,0.45996]
[1752404417575,0.04346955,117580.0,117570.0,0.20372]
[1752404418878,0.04346955,117580.0,117560.0,0.0157]
[1752404419092,0.04346955,117580.0,117560.0,0.01782657]
[1752404419602,0.04346955,117580.0,117570.0,0.25624]
[1752404419788,0.03946955,117580.0,117570.0,0.25624]
[1752404420139,0.04046955,117580.0,117570.0,0.25624]
[1752404420351,0.03946955,117580.0,117570.0,0.25624]
[1752404420551,0.0394696,117580.0,117570.0,0.25624]
[1752404420752,0.0414696,117580.0,117570.0,0.25624]
[1752404421203,0.0424696,117580.0,117570.0,0.25624]
[1752404422245,0.0414696,117580.0,117570.0,0.25624]
[1752404422531,0.0434696,117580.0,117570.0,0.25624]
[1752404423071,0.0355228,117580.0,117570.0,0.25624]
[1752404423240,0.04346957,117580.0,117570.0,0.25624]
[1752404423450,0.04346955,117580.0,117570.0,0.25624]
[1752404423652,0.04346955,117580.0,117550.0,0.09089376]
[1752404423893,0.04346955,117580.0,117560.0,0.00212657]
[1752404424923,0.04146955,117580.0,117560.0,0.00212657]
[1752404425256,0.04146955,117580.0,117570.0,0.20372]
[1752404426132,0.04246955,117580.0,117570.0,0.20372]
[1752404426277,0.04246953,117580.0,117570.0,0.20372]
[1752404427049,0.04046953,117580.0,117570.0,0.20372]
[1752404427576,0.03946953,117580.0,117570.0,0.45996]
[1752404427776,0.04146953,117580.0,117570.0,0.45996]
[1752404428998,0.04346953,117580.0,117570.0,0.45996]
[1752404429602,0.04346953,117580.0,117570.0,0.20372]
[1752404430193,0.03328232,117580.0,117570.0,0.20372]
[1752404430584,0.03122232,117580.0,117570.0,0.20372]
[1752404430958,0.01768232,117580.0,117570.0,0.20372]
[1752404431766,0.01768232,117580.0,117570.0,0.45996]
[1752404431941,0.00973559,117580.0,117570.0,0.45996]
[1752404432226,0.03328241,117580.0,117570.0,0.45996]
[1752404433746,0.03328241,117580.0,117550.0,0.12015835]
[1752404433982,0.03328241,117580.0,117560.0,0.0156]
[1752404434599,0.03328241,117580.0,117560.0,0.0308]